Cogmind - Beta 13 X1 @@@ ROGUE MODE // 2023.08.05 @ 16:05:38 Player: Cracklepappy Result: Destroyed by ZZ-M4W(R) with Subdweller Machine Gun Performance ------------- Evolutions (0) 0 Regions Visited (2) 400 Robots Destroyed (45) 225 Value Destroyed (1133) 1133 Prototype IDs (12) 240 Alien Tech Used (0) 0 Bonus (-48) -48 TOTAL SCORE: 1950 Bonus ------- Friendly Fire -48 Cogmind --------- Core Integrity 0/250 Matter 280/300 Energy 231/250 System Corruption 0% Temperature Cool (0) Movement Walking (750) Ox9 Location -10/Subcaves Parts ------- > --- POWER (1) -------- Ion Engine > --- PROPULSION (2) --- Aluminum Leg > --- UTILITY (2) ------ Huge Storage Unit Core Shielding > --- WEAPON (2) ------- Subdweller Laser Subdweller Machine Gun > --- INVENTORY (25) --- Wheel Flightbrick Heat Sink Heat Sink Large Storage Unit High-capacity Storage Unit Large Matter Pod (150) Light Armor Plating Cobbler Unit Riot Gun Subdweller Laser Beam Cannon Beam Cannon Subdweller Machine Gun Makeshift Shrapnel Gun Light Cannon Grenade Launcher Grenade Launcher Subdweller Shrapnel Launcher Peak State ------------ > --- POWER ------------ Ion Engine > --- PROPULSION ------- Light Treads Wheel > --- UTILITY ---------- Huge Storage Unit Core Shielding > --- WEAPON ----------- Subdweller Laser Subdweller Beam Cannon > --- INVENTORY -------- Aluminum Leg Subdweller Monowheel Flightbrick Heat Sink Heat Sink Large Storage Unit High-capacity Storage Unit Large Matter Pod Light Armor Plating Light Armor Plating Makeshift Thermal Plating Riot Gun Subdweller Laser Beam Cannon Beam Cannon Subdweller Machine Gun Subdweller Machine Gun Makeshift Shrapnel Gun Light Cannon Grenade Launcher Grenade Launcher Subdweller Shrapnel Launcher [Rating: 16] Favorites ----------- Power Ion Engine Engine Ion Engine Power Core Light Nuclear Core Propulsion Light Treads Treads Light Treads Leg Aluminum Leg Wheel Wheel Utility Huge Storage Unit Device Heat Sink Storage Huge Storage Unit Processor Signal Interpreter Protection Core Shielding Weapon Beam Cannon Energy Gun Small Laser Energy Cannon Beam Cannon Ballistic Gun Assault Rifle Launcher Grenade Launcher Build | -11 -10 -10 ------- Run | Jun Mat Sub Slots Evolved . | . . . Power . | . . . Propulsion . | . . . Utility . | . . . Weapon . | . . . Parts Attached 46 | 7 23 16 Power 4 | 1 2 1 Engine 3 | 1 1 1 Core 1 | . 1 . Reactor . | . . . Propulsion 11 | 2 2 7 Treads 7 | 2 2 3 Leg 2 | . . 2 Wheel 2 | . . 2 Hover . | . . . Flight . | . . . Utility 11 | 2 9 . Device 2 | 1 1 . Storage 6 | 1 5 . Processor 1 | . 1 . Hackware . | . . . Protection 2 | . 2 . Artifact . | . . . Weapon 20 | 2 10 8 Energy Gun 12 | 1 7 4 Energy Cannon 4 | . 2 2 Ballistic Gun 3 | 1 . 2 Ballistic Cannon . | . . . Launcher 1 | . 1 . Special Weapon . | . . . Impact Weapon . | . . . Slashing Weapon . | . . . Piercing Weapon . | . . . Special Melee Weapon . | . . . Unidentified Prototypes . | . . . Parts Lost 10 | . 2 8 Power 1 | . . 1 Propulsion 6 | . . 6 Utility 1 | . 1 . Weapon 2 | . 1 1 Highest Loss Streak 3 | . 1 3 To Critical Strikes . | . . . Average Slot Usage (%) 99 | . 99 99 Engine 10 | . 8 14 Core 3 | . 5 . Treads 25 | . 27 21 Wheel 1 | . . 5 Device 4 | . 7 . Storage 14 | . 14 14 Processor 1 | . 2 . Protection 7 | . 3 14 Energy Gun 9 | . 9 9 Energy Cannon 16 | . 15 18 Ballistic Gun 1 | . 2 . Naked Turns . | . . . Heaviest Build 98 | 12 92 98 Greatest Support 40 | 40 40 40 Greatest Overweight (x) 32 | . 2 32 Average Overweight (x) 2 | . 1 5 Largest Inventory Capacity 25 | 8 25 25 Average Capacity 21 | 7 19 25 Most Carried 25 | 8 25 25 Average Carried 20 | 5 18 24 Final Capacity 25 | 8 25 25 Final Carried 24 | 8 24 23 Class Distribution -------------------- 90% | Mutant 9% | Subdweller-Mutant Dominant Class ---------------- Mutant | -10/Materials Mutant | -10/Subcaves Resources | -11 -10 -10 ----------- Run | Jun Mat Sub Matter Collected 1131 | 294 695 142 Remotely . | . . . Salvage Created 1616 | 176 938 502 Parts 99 | 14 54 31 Haulers Intercepted 2 | . 2 . Recyclers Shooed 2 | . 2 . Parts Field Recycled . | . . . Retrieved Matter . | . . . Parts Self-Destructed 12 | . . 12 Prevented . | . . . Kills | -11 -10 -10 ------- Run | Jun Mat Sub Combat Hostiles Destroyed 33 | . 19 14 Melee 1 | . 1 . Guns 19 | . 16 3 Cannons 13 | . 2 11 Classes Destroyed 11 | 2 6 3 Worker 1 | . 1 . Tunneler 4 | 4 . . Hauler 2 | . 2 . Recycler 2 | 1 1 . Operator 1 | . 1 . Watcher 2 | . 2 . Swarmer 7 | . 3 4 Grunt 16 | . 16 . Artisan 1 | . . 1 Cobbler 1 | . . 1 Subdweller 10 | . . 10 Best Kill Streak 4 | 2 3 4 Combat Bots Only 4 | . 3 4 Max Kills in Single Turn 1 | 1 1 1 Gunslinging . | . . . Exploded . | . . . Melee 1 | . 1 . Uniques/NPCs Destroyed . | . . . Combat | -11 -10 -10 -------- Run | Jun Mat Sub Damage Taken 1845 | . 710 1135 Core 264 | . 115 149 Absorbed by Shields . | . . . Redirected to Shielding 32 | . . 32 Regen/Repaired (Parts) 92 | . 92 . Core Remaining (%) 100 | 100 . . Volleys Fired 154 | 8 93 53 Largest 2 | 2 2 2 Hottest 140 | 60 120 140 Shots Fired 298 | 16 180 102 Gun 197 | 16 149 32 Cannon 100 | . 30 70 Launcher 1 | . 1 . Special . | . . . Kinetic 47 | 8 33 6 Thermal 250 | 8 146 96 Explosive 1 | . 1 . Electromagnetic . | . . . Robot Hit Streak 17 | 6 17 11 Robot Miss Streak 3 | 1 3 3 Penetration Max . | . . . Secondary Targets . | . . . Shots Hit Robots 204 | 11 117 76 Core Hits 73 | 5 43 25 Critical Kills . | . . . Critical Parts Destroyed . | . . . Critical Strikes 1 | . 1 . Burn 1 | . 1 . Melee Attacks . | . . . Impact . | . . . Slashing . | . . . Piercing . | . . . Sneak Attacks . | . . . Combat Hostiles . | . . . Follow-up Attacks . | . . . Damage Inflicted 3135 | 122 1553 1460 Guns 1816 | 120 1270 426 Cannons 1302 | . 268 1034 Explosions . | . . . Melee . | . . . Ramming 17 | 2 15 . Kinetic 509 | 80 318 111 Thermal 2609 | 40 1220 1349 Explosive . | . . . Electromagnetic . | . . . Impact . | . . . Slashing . | . . . Piercing . | . . . Highest Corruption . | . . . Average Corruption . | . . . Corruption Purged . | . . . Corruption Blocked . | . . . Overload Shots . | . . . Overflow Damage 24 | . 24 . Projectiles 24 | . 24 . Explosions . | . . . Melee . | . . . Knockbacks . | . . . Impact . | . . . Kinetic . | . . . Secondary . | . . . Self-Inflicted Damage . | . . . Shots . | . . . Rammed 7 | . 7 . Targets Rammed 9 | 1 8 . Kicked . | . . . Crushed 2 | 1 1 . Highest Temperature 360 | . 360 120 Average Temperature 82 | . 94 30 Received Heat Transfer 495 | . 378 117 Effects 4 | . 4 . Energy Bleed 1 | . 1 . Interference 1 | . 1 . Matter Decay 2 | . 2 . Siege Activations . | . . . Robots Corrupted . | . . . Combat Hostiles . | . . . Parts Fried . | . . . Impact Corruptions . | . . . Robots Melted . | . . . Combat Hostiles . | . . . Parts Melted 5 | . 2 3 Heat Transferred 5304 | 100 2868 2336 Parts Sabotaged . | . . . Parts Stolen . | . . . Parts Stripped . | . . . Power Chain Reactions . | . . . Missiles Intercepted . | . . . Alert | -11 -10 -10 ------- Run | Jun Mat Sub Peak Influence 210 | 20 210 . Initial 16 | . 16 . Average 80 | 9 83 . Maximum Alert Level 1 | . 1 . Low Security (%) 97 | 100 97 . Level 1 2 | . 2 . Level 2 . | . . . Level 3 . | . . . Level 4 . | . . . Level 5 . | . . . High Security . | . . . Max Security . | . . . Squads Dispatched 6 | . 6 . Investigation 4 | . 4 . Extermination . | . . . Reinforcement 2 | . 2 . Assault . | . . . Garrison . | . . . Intercept . | . . . Searches Triggered . | . . . Construction Impeded . | . . . Haulers Reinforced . | . . . Active Scanning Responses . | . . . Cargo Convoy Interrupts . | . . . Stealth | -11 -10 -10 --------- Run | Jun Mat Sub Distress Signals 2 | . 2 . Communications Jammed . | . . . Distress Signals . | . . . Times Spotted 77 | . 62 15 Peak Tracking Total 6 | . 6 4 Tactical Retreats 2 | . 2 . Traps | -11 -10 -10 ------- Run | Jun Mat Sub Traps Triggered 4 | . 3 1 Indirectly . | . . . Trap Hack Attempts . | . . . Triggered . | . . . Disarmed . | . . . Reprogrammed . | . . . Reused . | . . . Traps Extracted . | . . . Installed . | . . . Triggered . | . . . Machines | -11 -10 -10 ---------- Run | Jun Mat Sub Machines Disabled 1 | . . 1 Max in Single Turn 1 | . . 1 Machines Repaired . | . . . Machines Sabotaged . | . . . Overloaded Fab Kills . | . . . Hacking | -11 -10 -10 --------- Run | Jun Mat Sub Machines Accessed 8 | . 7 1 Terminals 5 | . 5 . Fabricators . | . . . Repair Stations 1 | . 1 . Recycling Units 1 | . 1 . Scanalyzers . | . . . Garrison Access . | . . . Total Hacks 27 | . 18 9 Successful 18 | . 9 9 Failed 8 | . 8 . Catastrophic 4 | . 4 . Database Lockouts 1 | . 1 . Manual 10 | . 10 . Terminals 12 | . 12 . Fabricators . | . . . Repair Stations 4 | . 4 . Recycling Units 2 | . 2 . Scanalyzers . | . . . Garrison Access . | . . . Terminal Hacks 14 | . 5 9 Record 8 | . . 8 Part Schematic 3 | . 3 . Prototype ID Bank 1 | . 1 . Hauler Manifests 1 | . 1 . Derelict Proto ID Bank 1 | . . 1 Fabricator Hacks . | . . . Repair Station Hacks 3 | . 3 . Scan Component 2 | . 2 . Repair 1 | . 1 . Recycling Unit Hacks . | . . . Scanalyzer . | . . . Garrison Access Hacks . | . . . Unauthorized Hacks 1 | . 1 . Terminals . | . . . Fabricators . | . . . Repair Stations . | . . . Recycling Units 1 | . 1 . Tunnel 1 | . 1 . Scanalyzers . | . . . Garrison Access . | . . . Data Cores Recovered . | . . . Used . | . . . Hacking Detections 6 | . 6 . Full Trace Events 1 | . 1 . Feedback Events . | . . . Feedback Blocked . | . . . Robot Schematics Acquired . | . . . Robots Built . | . . . Authchips . | . . . Time . | . . . Total Robot Build Rating . | . . . Part Schematics Acquired 3 | . 3 . Parts Built . | . . . Authchips . | . . . Time . | . . . Total Part Build Rating . | . . . Parts Repaired 1 | . 1 . Time 26 | . 26 . Parts Recycled . | . . . Recycled Matter . | . . . Retrieved Matter . | . . . Retrieved Components . | . . . Parts Scanalyzed . | . . . Part Schematics Acquired . | . . . Parts Damaged . | . . . Bothacking | -11 -10 -10 ------------ Run | Jun Mat Sub Used RIF Installer . | . . . Robots Hacked . | . . . Non-combat . | . . . Combat . | . . . Robot Hacks Applied . | . . . Relay Couplers Released . | . . . Fabnet Peak Effective % . | . . . Robots Rewired . | . . . Allies Hacked . | . . . Hacks Repelled . | . . . Allies | -11 -10 -10 -------- Run | Jun Mat Sub Total Allies . | . . . Largest Group . | . . . Highest-Rated Group . | . . . Highest-Rated Ally . | . . . Total Orders . | . . . Ally Attacks . | . . . Total Damage . | . . . Kills . | . . . Allies Corrupted . | . . . Allies Melted . | . . . Intel | -11 -10 -10 ------- Run | Jun Mat Sub Robot Analysis Total . | . . . Derelict Logs Recovered 1 | . . 1 Drone Launches . | . . . Drone Recoveries . | . . . Exploration | -11 -10 -10 ------------- Run | Jun Mat Sub Turns Passed 7940 | 200 4869 2871 Spaces Moved 2680 | 101 1599 980 Core 10 | 5 . 5 Treads 2195 | 96 1599 500 Legs . | . . . Wheels 475 | . . 475 Hover . | . . . Flight . | . . . Fastest Speed 50 | 50 160 150 Average Speed 255 | 154 252 271 Slowest Speed 1650 | 160 320 1650 Overloaded Moves . | . . . Propulsion Burnouts . | . . . Robots Hopped . | . . . Cave-ins Triggered . | . . . Exploration Rate (%) 53 | 6 100 53 Regions Visited 2 Branch Regions 1 Pre-discovered Areas 1 | . 1 . Known Exits Taken 1 | . 1 . Unknown Exits Taken 1 | 1 . . Scrap Searched 5 | . . 5 Spaces Dug 8 | . 8 . Terrain Destroyed 9 | . 8 1 Melee . | . . . Projectile 1 | . . 1 AOE 8 | . 8 . Terrain Rammed . | . . . Walls Destroyed . | . . . Machines Disabled . | . . . Actions | -11 -10 -10 --------- Run | Jun Mat Sub Total 3458 | 125 2248 1085 Wait 479 | . 475 4 Move 2679 | 101 1598 980 Hop . | . . . Pick Up 56 | 9 30 17 Fast Attach 13 | 6 7 . Attach 9 | 1 1 7 Detach . | . . . Swap 24 | . 15 9 Drop 36 | . 21 15 Fire 154 | 8 93 53 Melee . | . . . Ram . | . . . Kick . | . . . Crush 8 | . 8 . Escape Stasis . | . . . Rewire . | . . . Trap . | . . . Miscellaneous . | . . . Route ------- -11/Junkyard -10/Materials (discovered 5 exits: *Mat x3 / *Min / *Sub) -10/Subcaves History --------- Turn | Location | Event 29 | -11/Junkyard | Discovered new exit (range 15) 201 | -11/Junkyard | Entered Materials 300 | -10/Materials | Build established: Mutant 1150 | -10/Materials | Discovered new exit (range 4) 1155 | -10/Materials | Discovered new exit (range 10) 1361 | -10/Materials | Discovered new exit (range 10) 1719 | -10/Materials | Discovered new exit (range 4) 2525 | -10/Materials | Repaired Lgt. Treads 3168 | -10/Materials | Discovered new exit (range 7) 3197 | -10/Materials | Central database locked down 3884 | -10/Materials | Identified exit to Materials 3967 | -10/Materials | Identified exit to Subcaves 4111 | -10/Materials | Identified exit to Mines 5070 | -10/Materials | Entered Subcaves 5164 | -10/Subcaves | Core integrity fell below 50% 5419 | -10/Subcaves | Learned Materials trap positions 6895 | -10/Subcaves | Build established: Subdweller-Mutant 6923 | -10/Subcaves | Disturbed a concealed Subdweller 6924 | -10/Subcaves | Ambushed by Subdweller buried in earth 6929 | -10/Subcaves | Core integrity fell below 20% 7313 | -10/Subcaves | Visited 4L-MR0's lab 7339 | -10/Subcaves | Found Flightbrick 7512 | -10/Subcaves | Ambushed by angry Subdweller bent on revenge 7627 | -10/Subcaves | Build established: Mutant 7941 | -10/Subcaves | Destroyed by ZZ-M4W(R) with Subdweller Machine Gun Last Messages --------------- 07337_ Dropped Beam Cannon. 07338_ Dropped Scrap Shield. 07338_ Dropped Mining Laser. 07339_ Acquired Flightbrick. 07357_ 4L-MR0 cries out in pain. 07357_ 4L-MR0 destroyed. 07511_ 0W-D55(O) cries out in pain. 07511_ 0W-D55(O) destroyed. 07512_ TV-VR5(R) angrily emerges from the Twisted Machinery. 07512_ TV-VR5(R): "OHNO!" 07514_ TV-VR5(R) destroyed. 07538_ Dropped Mak. Thermal Plating. 07539_ Dropped Lgt. Armor Plating. 07539_ Acquired Cobbler Unit. 07549_ Dropped Sub. Monowheel. 07550_ Acquired Wheel. 07926_ Sub. Beam Cannon destroyed. 07928_ Lgt. Treads destroyed. 07935_ CH-CY9(R) destroyed. 07939_ Wheel destroyed. Map ----- +----------------------------------------------------+ | ??## ^#?????????????????????????? | | ??# ^#?????????????????????????? | | ??## #### ^ #?????????????????????????? | | ?### ####??##### #?????????????????????????? | | ?# ######?????### ^ #?????????????????????????? | | ?# #????##### #???????????????########??? | | ?# #?#### # #???????????????# ##?? | | ?# #### ## ##???????????????# #?? | | ?### ### ^ #????????????????# & ### | | ??## # ########???????????# * # | | ??# ## #?# ######??????# & ## | | ###" ### ##?## ##?????# & * ##? | | # " ##?# ###### ##????# [ #? | | #### #??## #????### "### | | ## #???## ##????#### ## ! | | #" #????### #???## #" " | | ## ##?????## #??## | | # ## #?????## #### | | "## ### ##### ##????# # | | ## ##?# #?### ##???## ! ## | | "### #??######## ###??# ! ##? | | ##? #????????# ##?## %! #?? | | #? ????????# ### ##?## == ### | | ? ????????# #?## #??## # | | # ???????## ##?## #??## | | ## ????### #??###@ #?## | | ?# ??### ##????# ### ###### # | | ?## #?## ##????## # ##???## ###### | | ??# ### #?????#& #?#### ##???? | | ??# ## #????##%= ### ## #???? | | ???# ## #????# *R ## ## #???? | | ???##" ########### ##???? | | # ####???## ##???? | | #$#" #???????# ## #???? | | ??#?# ????????# #### #??## | | ??? ??####??## ##??## ######## | | ??# ??# #???###### #????# #### ## | | ?# ??## #????????# ######## ## | | #""" ??# #??###???# ##?## ## | | # """ ??# #### ########?## ### # | | ?? """" ???# ## ##??## ## ### | | ??? ??""???# #### ##?? | | ???????????# ## #??? | | ??????????# ## #### | | ??????????## ## ##### ## ## | | ???????????# ####### # #???## #### | | ???????????# ??????## ###????# ##??# | | ?????????? ??????# ##??????# ###???## | | ????????? ??????## ??????###??????######### | | ????????"" ???????# ??????????????????????? | +----------------------------------------------------+ Best States ------------- Heat Dissipation 35 Energy Generation 14 Energy Capacity 250 Matter Stores 300 Matter Capacity 300 Sight Range 16 Terrain Scan Density 10 Armor Coverage 150 Core Shielding 20 Evasion (%) 40 Recoil Reduction 2 Item Schematics ----------------- Cargo Storage Unit | -10/Materials | Hacked Huge Storage Unit | -10/Materials | Hacked Hcp. Storage Unit | -10/Materials | Hacked Robot Schematics ------------------ None Fabricated ------------ Nothing Alien Tech Used ----------------- None Achievements -------------- None Challenges ------------ None Game ------ Seed CooledHardenedSword Manual? 0 Play Time 00:27:16 Cumulative 563.5 hours Start 2023.08.05 @ 14:27:03 End 2023.08.05 @ 16:05:38 Sessions 2 Manual Loads 0 Difficulty Rogue Special Mode None Game No. 388 Rogue 388 Adventurer 0 Explorer 0 Win Type - Total 18 Types 9/3/2/0/0/1/2/1/0 Lore% 82 Gallery% 90 Achievement% 80 Wizard Run 0 Options --------- ASCII 0 Keyboard 0 Movement Numpad Keybinds 0 Fullscreen 1 Font 24/Terminus Map View 76x50 Tactical HUD 1 Map Filters NONE Filters NONE Steam 1 RUN: 26581dba-17af-45d8-9bdc-7bbc735f4752